[Event "Titled Tuesday Blitz June 13 Early 2023"]
[White "Al Mukhaini, Shima"]
[Black "ArtemDyachuk"]
[WhiteFideId "22005854"]
[WhiteElo "2279"]
[BlackElo "2602"]
[Result "0-1"]
[Round "1"]
[TimeControl "180+2"]
[Date "2023.06.13"]
[WhiteClock "0:00:00"]
[BlackClock "0:00:03"]
[Board "171"]

1. b3 {[%clk 0:02:59]}  e5 {[%clk 0:02:56]} 2. Bb2 {[%clk 0:02:59]}  Nc6 {[%clk 0:02:55]} 3. e3 {[%clk 0:03:00]}  d5 {[%clk 0:02:52]} 4. Bb5 {[%clk 0:03:00]}  Qg5 {[%clk 0:02:27]} 5. Qf3 {[%clk 0:02:56]}  Nf6 {[%clk 0:02:23]} 6. Qg3 {[%clk 0:02:53]}  Qxg3 {[%clk 0:02:16]} 7. hxg3 {[%clk 0:02:53]}  Bd6 {[%clk 0:02:13]} 8. Bxc6+ {[%clk 0:02:52]}  bxc6 {[%clk 0:02:13]} 9. d3 {[%clk 0:02:53]}  Bf5 {[%clk 0:02:06]} 10. Nf3 {[%clk 0:02:38]}  Ng4 {[%clk 0:02:04]} 11. Nbd2 {[%clk 0:02:29]}  f6 {[%clk 0:01:46]} 12. e4 {[%clk 0:02:26]}  dxe4 {[%clk 0:01:45]} 13. Nxe4 {[%clk 0:02:25]}  Bb4+ {[%clk 0:01:35]} 14. Ke2 {[%clk 0:02:25]}  O-O-O {[%clk 0:01:32]} 15. Rad1 {[%clk 0:02:21]}  Bxe4 {[%clk 0:01:27]} 16. dxe4 {[%clk 0:02:20]}  Bc5 {[%clk 0:01:27]} 17. Rxd8+ {[%clk 0:02:11]}  Kxd8 {[%clk 0:01:28]} 18. Rf1 {[%clk 0:02:04]}  Ke7 {[%clk 0:01:27]} 19. Ne1 {[%clk 0:01:59]}  Rd8 {[%clk 0:01:23]} 20. Nd3 {[%clk 0:01:59]}  Bb6 {[%clk 0:01:20]} 21. Bc1 {[%clk 0:01:49]}  Rg8 {[%clk 0:00:49]} 22. f3 {[%clk 0:01:48]}  Nh6 {[%clk 0:00:49]} 23. Bxh6 {[%clk 0:01:47]}  gxh6 {[%clk 0:00:50]} 24. g4 {[%clk 0:01:47]}  h5 {[%clk 0:00:48]} 25. Rh1 {[%clk 0:01:48]}  hxg4 {[%clk 0:00:48]} 26. Rxh7+ {[%clk 0:01:48]}  Ke6 {[%clk 0:00:45]} 27. fxg4 {[%clk 0:01:28]}  Rxg4 {[%clk 0:00:45]} 28. Kf3 {[%clk 0:01:29]}  Rg6 {[%clk 0:00:42]} 29. g4 {[%clk 0:01:27]}  Rg8 {[%clk 0:00:38]} 30. Nb4 {[%clk 0:01:12]}  Kd6 {[%clk 0:00:26]} 31. Nd3 {[%clk 0:01:04]}  Ke6 {[%clk 0:00:24]} 32. Nb4 {[%clk 0:01:03]}  Kd6 {[%clk 0:00:25]} 33. Rf7 {[%clk 0:01:03]}  a5 {[%clk 0:00:23]} 34. Nd3 {[%clk 0:00:55]}  Ke6 {[%clk 0:00:19]} 35. Rh7 {[%clk 0:00:54]}  a4 {[%clk 0:00:18]} 36. b4 {[%clk 0:00:50]}  Rd8 {[%clk 0:00:14]} 37. Rh6 {[%clk 0:00:21]}  Kf7 {[%clk 0:00:13]} 38. Rh7+ {[%clk 0:00:21]}  Ke6 {[%clk 0:00:12]} 39. Rg7 {[%clk 0:00:21]}  Rh8 {[%clk 0:00:11]} 40. Kg2 {[%clk 0:00:21]}  Rd8 {[%clk 0:00:09]} 41. Kg3 {[%clk 0:00:21]}  Rd4 {[%clk 0:00:08]} 42. Kf3 {[%clk 0:00:22]}  Rc4 {[%clk 0:00:08]} 43. Nc5+ {[%clk 0:00:18]}  Bxc5 {[%clk 0:00:08]} 44. bxc5 {[%clk 0:00:19]}  Rc3+ {[%clk 0:00:08]} 45. Ke2 {[%clk 0:00:18]}  Rxc2+ {[%clk 0:00:09]} 46. Kd3 {[%clk 0:00:19]}  Rxc5 {[%clk 0:00:07]} 47. Rxc7 {[%clk 0:00:20]}  Rc1 {[%clk 0:00:07]} 48. Ra7 {[%clk 0:00:18]}  Rg1 {[%clk 0:00:05]} 49. Rxa4 {[%clk 0:00:17]}  Rxg4 {[%clk 0:00:05]} 50. Ra6 {[%clk 0:00:17]}  Kd6 {[%clk 0:00:04]} 51. Ra8 {[%clk 0:00:13]}  Rg3+ {[%clk 0:00:04]} 52. Kd2 {[%clk 0:00:13]}  Kc5 {[%clk 0:00:03]} 53. a4 {[%clk 0:00:11]}  Kd4 {[%clk 0:00:03]} 54. Rf8 {[%clk 0:00:08]}  Rf3 {[%clk 0:00:02]} 55. Rc8 {[%clk 0:00:08]}  Kxe4 {[%clk 0:00:02]} 56. Rxc6 {[%clk 0:00:08]}  f5 {[%clk 0:00:01]} 57. Rc4+ {[%clk 0:00:05]}  Kd5 {[%clk 0:00:02]} 58. Rb4 {[%clk 0:00:05]}  Ra3 {[%clk 0:00:02]} 59. Rb5+ {[%clk 0:00:05]}  Kd6 {[%clk 0:00:02]} 60. a5 {[%clk 0:00:03]}  f4 {[%clk 0:00:03]} 61. Rb6+ {[%clk 0:00:01]}  Kd5 {[%clk 0:00:03]} 62. Rb5+ {[%clk 0:00:00]}  Ke4 {[%clk 0:00:03]} 0-1


[Site "https://www.chess.com"]

[Event "Titled Tuesday Blitz June 13 Early 2023"]
[White "Iskusnyh, Sergei"]
[Black "Antonio, Jorge Carlos"]
[WhiteFideId "4120027"]
[BlackFideId "113190"]
[WhiteElo "2492"]
[BlackElo "2247"]
[Result "1-0"]
[Round "1"]
[TimeControl "180+2"]
[Date "2023.06.13"]
[WhiteClock "0:01:12"]
[BlackClock "0:00:45"]
[Board "172"]

1. d4 {[%clk 0:03:00]}  d5 {[%clk 0:02:55]} 2. c4 {[%clk 0:02:59]}  c6 {[%clk 0:02:54]} 3. Nf3 {[%clk 0:02:58]}  Nf6 {[%clk 0:02:52]} 4. e3 {[%clk 0:02:58]}  Bg4 {[%clk 0:02:45]} 5. h3 {[%clk 0:02:56]}  Bxf3 {[%clk 0:02:43]} 6. Qxf3 {[%clk 0:02:56]}  e6 {[%clk 0:02:44]} 7. Bd3 {[%clk 0:02:53]}  Nbd7 {[%clk 0:02:44]} 8. Nd2 {[%clk 0:02:46]}  Be7 {[%clk 0:02:45]} 9. O-O {[%clk 0:02:40]}  O-O {[%clk 0:02:46]} 10. b3 {[%clk 0:02:39]}  Rc8 {[%clk 0:02:42]} 11. Bb2 {[%clk 0:02:39]}  Nb6 {[%clk 0:02:40]} 12. Qe2 {[%clk 0:02:30]}  Re8 {[%clk 0:02:36]} 13. c5 {[%clk 0:02:29]}  Nbd7 {[%clk 0:02:35]} 14. f4 {[%clk 0:02:29]}  Nf8 {[%clk 0:02:32]} 15. b4 {[%clk 0:02:27]}  N6d7 {[%clk 0:02:29]} 16. Nf3 {[%clk 0:02:20]}  b6 {[%clk 0:02:28]} 17. Rab1 {[%clk 0:02:15]}  bxc5 {[%clk 0:02:27]} 18. bxc5 {[%clk 0:02:14]}  Qa5 {[%clk 0:02:26]} 19. Qc2 {[%clk 0:02:07]}  Rb8 {[%clk 0:02:24]} 20. Bc3 {[%clk 0:02:06]}  Qc7 {[%clk 0:02:20]} 21. Rb3 {[%clk 0:02:04]}  Rxb3 {[%clk 0:02:20]} 22. axb3 {[%clk 0:02:04]}  Rb8 {[%clk 0:02:20]} 23. Ra1 {[%clk 0:02:03]}  Qb7 {[%clk 0:02:18]} 24. b4 {[%clk 0:01:55]}  f6 {[%clk 0:02:11]} 25. e4 {[%clk 0:01:49]}  Qc7 {[%clk 0:02:07]} 26. e5 {[%clk 0:01:47]}  f5 {[%clk 0:02:06]} 27. Qa4 {[%clk 0:01:41]}  Ra8 {[%clk 0:02:02]} 28. b5 {[%clk 0:01:40]}  cxb5 {[%clk 0:01:54]} 29. Bxb5 {[%clk 0:01:39]}  Nb8 {[%clk 0:01:53]} 30. Ba5 {[%clk 0:01:34]}  Qb7 {[%clk 0:01:49]} 31. c6 {[%clk 0:01:32]}  Qc8 {[%clk 0:01:48]} 32. c7 {[%clk 0:01:28]}  Nbd7 {[%clk 0:01:45]} 33. Bc6 {[%clk 0:01:27]}  h6 {[%clk 0:01:19]} 34. Rc1 {[%clk 0:01:23]}  Nb6 {[%clk 0:01:01]} 35. Bxb6 {[%clk 0:01:21]}  axb6 {[%clk 0:01:01]} 36. Bxa8 {[%clk 0:01:19]}  b5 {[%clk 0:00:57]} 37. Qa7 {[%clk 0:01:16]}  Nd7 {[%clk 0:00:45]} 38. Bb7 {[%clk 0:01:12]} 1-0


[Site "https://www.chess.com"]

[Event "Titled Tuesday Blitz June 13 Early 2023"]
[White "Sarkar, Justin"]
[Black "Dixit, Nikhil"]
[WhiteFideId "2010011"]
[BlackFideId "5059534"]
[WhiteElo "2151"]
[BlackElo "2207"]
[Result "1-0"]
[Round "1"]
[TimeControl "180+2"]
[Date "2023.06.13"]
[WhiteClock "0:00:57"]
[BlackClock "0:00:21"]
[Board "173"]

1. Nc3 {[%clk 0:02:44]}  c5 {[%clk 0:02:53]} 2. Nf3 {[%clk 0:02:42]}  Nc6 {[%clk 0:02:53]} 3. e4 {[%clk 0:02:32]}  e5 {[%clk 0:02:47]} 4. Bc4 {[%clk 0:02:30]}  d6 {[%clk 0:02:36]} 5. d3 {[%clk 0:02:28]}  h6 {[%clk 0:02:35]} 6. Nd2 {[%clk 0:02:19]}  Nf6 {[%clk 0:01:06]} 7. Nf1 {[%clk 0:02:16]}  Be7 {[%clk 0:01:06]} 8. Ne3 {[%clk 0:02:15]}  a6 {[%clk 0:01:06]} 9. a4 {[%clk 0:02:11]}  b6 {[%clk 0:01:03]} 10. O-O {[%clk 0:02:09]}  Be6 {[%clk 0:01:02]} 11. Ncd5 {[%clk 0:02:04]}  Nd4 {[%clk 0:00:59]} 12. c3 {[%clk 0:01:57]}  Nc6 {[%clk 0:00:58]} 13. f4 {[%clk 0:01:57]}  exf4 {[%clk 0:00:57]} 14. Rxf4 {[%clk 0:01:52]}  Ne5 {[%clk 0:00:56]} 15. Bb3 {[%clk 0:01:38]}  O-O {[%clk 0:00:50]} 16. Rf1 {[%clk 0:01:28]}  Nxd5 {[%clk 0:00:49]} 17. Nxd5 {[%clk 0:01:22]}  Rb8 {[%clk 0:00:26]} 18. d4 {[%clk 0:01:18]}  Nd7 {[%clk 0:00:24]} 19. Nxe7+ {[%clk 0:01:13]}  Qxe7 {[%clk 0:00:24]} 20. d5 {[%clk 0:01:13]}  c4 {[%clk 0:00:25]} 21. Bc2 {[%clk 0:01:07]}  Ne5 {[%clk 0:00:19]} 22. dxe6 {[%clk 0:01:06]}  fxe6 {[%clk 0:00:20]} 23. Be3 {[%clk 0:01:04]}  b5 {[%clk 0:00:20]} 24. axb5 {[%clk 0:01:03]}  axb5 {[%clk 0:00:21]} 25. Ra7 {[%clk 0:01:02]}  Rxf1+ {[%clk 0:00:21]} 26. Qxf1 {[%clk 0:01:02]}  Qe8 {[%clk 0:00:22]} 27. Bd4 {[%clk 0:00:57]}  Nc6 {[%clk 0:00:21]} 1-0


[Site "https://www.chess.com"]

[Event "Titled Tuesday Blitz June 13 Early 2023"]
[White "Mhango, Banele"]
[Black "Liu, Kelsey"]
[WhiteFideId "14327040"]
[BlackFideId "30944481"]
[WhiteElo "2204"]
[BlackElo "2267"]
[Result "1-0"]
[Round "1"]
[TimeControl "180+2"]
[Date "2023.06.13"]
[WhiteClock "0:01:42"]
[BlackClock "0:01:21"]
[Board "176"]

1. Nf3 {[%clk 0:02:58]}  Nf6 {[%clk 0:03:00]} 2. g3 {[%clk 0:02:57]}  e6 {[%clk 0:03:00]} 3. Bg2 {[%clk 0:02:58]}  d5 {[%clk 0:03:01]} 4. O-O {[%clk 0:02:59]}  Be7 {[%clk 0:03:01]} 5. d4 {[%clk 0:02:59]}  O-O {[%clk 0:03:02]} 6. c4 {[%clk 0:03:00]}  dxc4 {[%clk 0:03:02]} 7. Qc2 {[%clk 0:03:00]}  c5 {[%clk 0:03:02]} 8. dxc5 {[%clk 0:03:00]}  Bxc5 {[%clk 0:03:03]} 9. Qxc4 {[%clk 0:03:00]}  Nbd7 {[%clk 0:03:02]} 10. Nc3 {[%clk 0:03:00]}  a6 {[%clk 0:03:02]} 11. Qb3 {[%clk 0:02:58]}  Qe7 {[%clk 0:02:42]} 12. Rd1 {[%clk 0:02:50]}  Rb8 {[%clk 0:02:38]} 13. a4 {[%clk 0:02:48]}  b6 {[%clk 0:02:38]} 14. Bf4 {[%clk 0:02:30]}  e5 {[%clk 0:02:37]} 15. Bg5 {[%clk 0:02:31]}  Bb7 {[%clk 0:02:34]} 16. e3 {[%clk 0:02:15]}  h6 {[%clk 0:02:32]} 17. Bxf6 {[%clk 0:02:15]}  Nxf6 {[%clk 0:02:32]} 18. Nh4 {[%clk 0:02:15]}  Bxg2 {[%clk 0:02:31]} 19. Kxg2 {[%clk 0:02:16]}  g6 {[%clk 0:02:22]} 20. Nd5 {[%clk 0:02:10]}  Nxd5 {[%clk 0:02:20]} 21. Rxd5 {[%clk 0:02:10]}  Kg7 {[%clk 0:02:18]} 22. Qc3 {[%clk 0:02:08]}  Rfe8 {[%clk 0:02:13]} 23. Nf3 {[%clk 0:02:06]}  f6 {[%clk 0:02:00]} 24. Rad1 {[%clk 0:02:02]}  Red8 {[%clk 0:02:01]} 25. Qd2 {[%clk 0:01:54]}  Rxd5 {[%clk 0:01:52]} 26. Qxd5 {[%clk 0:01:54]}  b5 {[%clk 0:01:41]} 27. axb5 {[%clk 0:01:45]}  Rxb5 {[%clk 0:01:37]} 28. Qc6 {[%clk 0:01:45]}  Rb6 {[%clk 0:01:24]} 29. Qc8 {[%clk 0:01:45]}  Rd6 {[%clk 0:01:21]} 30. Qxc5 {[%clk 0:01:42]} 1-0


[Site "https://www.chess.com"]

[Event "Titled Tuesday Blitz June 13 Early 2023"]
[White "Afanasieva, Alexandra"]
[Black "Moksh Amit Doshi"]
[WhiteFideId "34126926"]
[BlackFideId "25064967"]
[WhiteElo "1736"]
[BlackElo "2297"]
[Result "1-0"]
[Round "1"]
[TimeControl "180+2"]
[Date "2023.06.13"]
[WhiteClock "0:00:44"]
[BlackClock "0:01:17"]
[Board "179"]

1. e4 {[%clk 0:03:00]}  c5 {[%clk 0:02:58]} 2. Nf3 {[%clk 0:03:00]}  e6 {[%clk 0:02:58]} 3. d4 {[%clk 0:03:01]}  cxd4 {[%clk 0:02:59]} 4. Nxd4 {[%clk 0:03:01]}  Nc6 {[%clk 0:03:00]} 5. Nc3 {[%clk 0:03:01]}  Qc7 {[%clk 0:02:55]} 6. g3 {[%clk 0:03:01]}  a6 {[%clk 0:02:52]} 7. Bg2 {[%clk 0:03:02]}  h5 {[%clk 0:02:52]} 8. h4 {[%clk 0:02:57]}  Nf6 {[%clk 0:02:47]} 9. O-O {[%clk 0:02:57]}  Bc5 {[%clk 0:02:40]} 10. Nxc6 {[%clk 0:02:49]}  dxc6 {[%clk 0:02:37]} 11. Bf4 {[%clk 0:02:03]}  e5 {[%clk 0:02:35]} 12. Bg5 {[%clk 0:01:55]}  Ng4 {[%clk 0:02:33]} 13. Qf3 {[%clk 0:01:50]}  O-O {[%clk 0:02:28]} 14. Rad1 {[%clk 0:01:40]}  Be6 {[%clk 0:02:25]} 15. b3 {[%clk 0:01:33]}  Bd4 {[%clk 0:01:56]} 16. Ne2 {[%clk 0:01:31]}  Ba7 {[%clk 0:01:53]} 17. Rd3 {[%clk 0:01:17]}  f6 {[%clk 0:01:48]} 18. Be3 {[%clk 0:01:10]}  Nxe3 {[%clk 0:01:44]} 19. fxe3 {[%clk 0:01:08]}  Bg4 {[%clk 0:01:44]} 20. Qf2 {[%clk 0:01:06]}  Rad8 {[%clk 0:01:44]} 21. Rfd1 {[%clk 0:01:03]}  Rxd3 {[%clk 0:01:40]} 22. cxd3 {[%clk 0:00:53]}  Rd8 {[%clk 0:01:39]} 23. Bf3 {[%clk 0:00:51]}  Qb6 {[%clk 0:01:36]} 24. Bxg4 {[%clk 0:00:49]}  Qxe3 {[%clk 0:01:36]} 25. Be6+ {[%clk 0:00:47]}  Kf8 {[%clk 0:01:26]} 26. Qxe3 {[%clk 0:00:46]}  Bxe3+ {[%clk 0:01:27]} 27. Kg2 {[%clk 0:00:47]}  Ke7 {[%clk 0:01:24]} 28. Bf5 {[%clk 0:00:47]}  Rh8 {[%clk 0:01:22]} 29. Kf3 {[%clk 0:00:45]}  Kf7 {[%clk 0:01:17]} 30. Kxe3 {[%clk 0:00:44]} 1-0


[Site "https://www.chess.com"]

[Event "Titled Tuesday Blitz June 13 Early 2023"]
[White "Bayo Milagro, Alvaro"]
[Black "Levitan, Caleb Levi"]
[WhiteFideId "22275240"]
[BlackFideId "14332620"]
[WhiteElo "2270"]
[BlackElo "1963"]
[Result "0-1"]
[Round "1"]
[TimeControl "180+2"]
[Date "2023.06.13"]
[WhiteClock "0:01:48"]
[BlackClock "0:01:23"]
[Board "180"]

1. d4 {[%clk 0:03:00]}  d5 {[%clk 0:02:59]} 2. c4 {[%clk 0:03:01]}  e6 {[%clk 0:02:59]} 3. Nf3 {[%clk 0:03:00]}  Nf6 {[%clk 0:02:58]} 4. g3 {[%clk 0:03:01]}  dxc4 {[%clk 0:02:58]} 5. Bg2 {[%clk 0:03:01]}  Bb4+ {[%clk 0:02:58]} 6. Bd2 {[%clk 0:03:00]}  c5 {[%clk 0:02:59]} 7. dxc5 {[%clk 0:02:49]}  Bxc5 {[%clk 0:02:58]} 8. Qa4+ {[%clk 0:02:47]}  Nbd7 {[%clk 0:02:57]} 9. Qxc4 {[%clk 0:02:47]}  b5 {[%clk 0:02:45]} 10. Qc1 {[%clk 0:02:41]}  Bb7 {[%clk 0:02:42]} 11. O-O {[%clk 0:02:41]}  O-O {[%clk 0:02:41]} 12. Rd1 {[%clk 0:02:35]}  Rc8 {[%clk 0:02:40]} 13. Bc3 {[%clk 0:02:34]}  Qb6 {[%clk 0:02:25]} 14. e3 {[%clk 0:02:31]}  b4 {[%clk 0:02:24]} 15. Bxf6 {[%clk 0:02:31]}  Nxf6 {[%clk 0:02:23]} 16. Qd2 {[%clk 0:02:23]}  Rfd8 {[%clk 0:02:18]} 17. Qe1 {[%clk 0:02:23]}  Rxd1 {[%clk 0:02:17]} 18. Qxd1 {[%clk 0:02:21]}  Bxe3 {[%clk 0:02:16]} 19. Nbd2 {[%clk 0:02:08]}  Bxf2+ {[%clk 0:02:10]} 20. Kh1 {[%clk 0:02:08]}  Be3 {[%clk 0:02:05]} 21. h3 {[%clk 0:02:04]}  Bxd2 {[%clk 0:02:02]} 22. Qxd2 {[%clk 0:02:03]}  Ne4 {[%clk 0:02:01]} 23. Qe1 {[%clk 0:02:03]}  Nf2+ {[%clk 0:01:53]} 24. Kh2 {[%clk 0:02:02]}  Rc2 {[%clk 0:01:32]} 25. Rc1 {[%clk 0:01:58]}  Nd3 {[%clk 0:01:26]} 26. Qd1 {[%clk 0:01:50]}  Rxc1 {[%clk 0:01:24]} 27. Qxd3 {[%clk 0:01:48]}  Bxf3 {[%clk 0:01:23]} 0-1


[Site "https://www.chess.com"]

[Event "Titled Tuesday Blitz June 13 Early 2023"]
[White "Vila Dupla, Aurelio"]
[Black "Girya, Olga"]
[WhiteFideId "2203383"]
[BlackFideId "4195752"]
[WhiteElo "2009"]
[BlackElo "2263"]
[Result "1/2-1/2"]
[Round "1"]
[TimeControl "180+2"]
[Date "2023.06.13"]
[WhiteClock "0:00:24"]
[BlackClock "0:00:07"]
[Board "181"]

1. Nf3 {[%clk 0:02:58]}  d5 {[%clk 0:02:59]} 2. d4 {[%clk 0:02:57]}  Nf6 {[%clk 0:02:59]} 3. c4 {[%clk 0:02:55]}  e6 {[%clk 0:02:59]} 4. cxd5 {[%clk 0:02:54]}  exd5 {[%clk 0:02:59]} 5. Nc3 {[%clk 0:02:55]}  c6 {[%clk 0:02:54]} 6. Qc2 {[%clk 0:02:55]}  g6 {[%clk 0:02:54]} 7. Bg5 {[%clk 0:02:54]}  Be7 {[%clk 0:02:45]} 8. e3 {[%clk 0:02:54]}  Bf5 {[%clk 0:02:45]} 9. Bd3 {[%clk 0:02:54]}  Bxd3 {[%clk 0:02:45]} 10. Qxd3 {[%clk 0:02:55]}  Nbd7 {[%clk 0:02:46]} 11. O-O {[%clk 0:02:55]}  O-O {[%clk 0:02:46]} 12. Rfe1 {[%clk 0:02:40]}  Re8 {[%clk 0:02:45]} 13. Rad1 {[%clk 0:02:38]}  Ne4 {[%clk 0:02:38]} 14. Bxe7 {[%clk 0:02:38]}  Qxe7 {[%clk 0:02:38]} 15. Nd2 {[%clk 0:02:31]}  Nxd2 {[%clk 0:02:13]} 16. Rxd2 {[%clk 0:02:25]}  Rad8 {[%clk 0:02:13]} 17. f3 {[%clk 0:02:25]}  f5 {[%clk 0:02:07]} 18. e4 {[%clk 0:02:04]}  dxe4 {[%clk 0:02:04]} 19. fxe4 {[%clk 0:02:04]}  Kh8 {[%clk 0:01:37]} 20. Rde2 {[%clk 0:02:02]}  Nc5 {[%clk 0:01:17]} 21. Qc2 {[%clk 0:02:00]}  Nxe4 {[%clk 0:01:07]} 22. Nxe4 {[%clk 0:02:00]}  fxe4 {[%clk 0:01:08]} 23. Rxe4 {[%clk 0:01:59]}  Qd7 {[%clk 0:00:57]} 24. Qc3 {[%clk 0:01:26]}  Rxe4 {[%clk 0:00:55]} 25. Rxe4 {[%clk 0:01:26]}  Qd5 {[%clk 0:00:22]} 26. Re5 {[%clk 0:01:08]}  Qxd4+ {[%clk 0:00:21]} 27. Qxd4 {[%clk 0:01:08]}  Rxd4 {[%clk 0:00:22]} 28. Re8+ {[%clk 0:01:09]}  Kg7 {[%clk 0:00:22]} 29. Re7+ {[%clk 0:01:09]}  Kf6 {[%clk 0:00:12]} 30. Rxb7 {[%clk 0:01:10]}  a5 {[%clk 0:00:12]} 31. Rb6 {[%clk 0:01:02]}  Rc4 {[%clk 0:00:10]} 32. Kf2 {[%clk 0:00:56]}  Rc2+ {[%clk 0:00:10]} 33. Kf3 {[%clk 0:00:55]}  Ke6 {[%clk 0:00:09]} 34. Rb7 {[%clk 0:00:54]}  h5 {[%clk 0:00:07]} 35. Rb8 {[%clk 0:00:45]}  Kd6 {[%clk 0:00:06]} 36. h3 {[%clk 0:00:37]}  a4 {[%clk 0:00:06]} 37. g4 {[%clk 0:00:37]}  hxg4+ {[%clk 0:00:04]} 38. Kxg4 {[%clk 0:00:36]}  Kc5 {[%clk 0:00:05]} 39. h4 {[%clk 0:00:34]}  Rg2+ {[%clk 0:00:04]} 40. Kf3 {[%clk 0:00:33]}  Rh2 {[%clk 0:00:04]} 41. Kg4 {[%clk 0:00:30]}  Rg2+ {[%clk 0:00:04]} 42. Kf3 {[%clk 0:00:30]}  Rh2 {[%clk 0:00:04]} 43. Kg4 {[%clk 0:00:31]}  Rc2 {[%clk 0:00:04]} 44. Kg5 {[%clk 0:00:29]}  Rg2+ {[%clk 0:00:04]} 45. Kf4 {[%clk 0:00:29]}  a3 {[%clk 0:00:04]} 46. bxa3 {[%clk 0:00:28]}  Rxa2 {[%clk 0:00:05]} 47. Kg5 {[%clk 0:00:28]}  Rxa3 {[%clk 0:00:05]} 48. Kxg6 {[%clk 0:00:28]}  Rg3+ {[%clk 0:00:05]} 49. Kf6 {[%clk 0:00:27]}  Rh3 {[%clk 0:00:05]} 50. Kg5 {[%clk 0:00:26]}  Kc4 {[%clk 0:00:05]} 51. h5 {[%clk 0:00:26]}  c5 {[%clk 0:00:06]} 52. h6 {[%clk 0:00:26]}  Kd3 {[%clk 0:00:06]} 53. Kg6 {[%clk 0:00:26]}  c4 {[%clk 0:00:06]} 54. Rd8+ {[%clk 0:00:25]}  Kc2 {[%clk 0:00:06]} 55. Rc8 {[%clk 0:00:26]}  c3 {[%clk 0:00:06]} 56. h7 {[%clk 0:00:26]}  Kd2 {[%clk 0:00:07]} 57. Kg7 {[%clk 0:00:25]}  Rxh7+ {[%clk 0:00:06]} 58. Kxh7 {[%clk 0:00:25]}  c2 {[%clk 0:00:07]} 59. Rxc2+ {[%clk 0:00:24]}  Kxc2 {[%clk 0:00:07]} 1/2-1/2


[Site "https://www.chess.com"]

[Event "Titled Tuesday Blitz June 13 Early 2023"]
[White "RobertDowneyJr0111"]
[Black "Chakravarthi Reddy, M"]
[BlackFideId "25009532"]
[WhiteElo "2590"]
[BlackElo "2201"]
[Result "1-0"]
[Round "1"]
[TimeControl "180+2"]
[Date "2023.06.13"]
[WhiteClock "0:02:10"]
[BlackClock "0:01:18"]
[Board "182"]

1. e4 {[%clk 0:03:00]}  e5 {[%clk 0:02:50]} 2. Nf3 {[%clk 0:03:00]}  Nc6 {[%clk 0:02:45]} 3. Bc4 {[%clk 0:03:01]}  Nf6 {[%clk 0:02:43]} 4. O-O {[%clk 0:03:01]}  Bc5 {[%clk 0:02:35]} 5. d4 {[%clk 0:03:00]}  Nxd4 {[%clk 0:02:26]} 6. Nxe5 {[%clk 0:03:00]}  O-O {[%clk 0:02:26]} 7. Be3 {[%clk 0:02:59]}  d6 {[%clk 0:02:17]} 8. Nxf7 {[%clk 0:02:56]}  Rxf7 {[%clk 0:02:17]} 9. Bxf7+ {[%clk 0:02:56]}  Kxf7 {[%clk 0:02:17]} 10. Bxd4 {[%clk 0:02:57]}  Nxe4 {[%clk 0:02:00]} 11. Qh5+ {[%clk 0:02:48]}  Kg8 {[%clk 0:01:56]} 12. Qd5+ {[%clk 0:02:46]}  Kh8 {[%clk 0:01:45]} 13. Qxe4 {[%clk 0:02:46]}  d5 {[%clk 0:01:42]} 14. Qe5 {[%clk 0:02:41]}  Bxd4 {[%clk 0:01:35]} 15. Qxd4 {[%clk 0:02:42]}  c6 {[%clk 0:01:35]} 16. Nd2 {[%clk 0:02:31]}  Bf5 {[%clk 0:01:33]} 17. c3 {[%clk 0:02:29]}  Qg5 {[%clk 0:01:32]} 18. Nf3 {[%clk 0:02:29]}  Qh5 {[%clk 0:01:29]} 19. Rfe1 {[%clk 0:02:27]}  Be4 {[%clk 0:01:27]} 20. Re3 {[%clk 0:02:14]}  Rf8 {[%clk 0:01:24]} 21. Rae1 {[%clk 0:02:12]}  Bxf3 {[%clk 0:01:22]} 22. Rxf3 {[%clk 0:02:12]}  Rxf3 {[%clk 0:01:21]} 23. gxf3 {[%clk 0:02:12]}  h6 {[%clk 0:01:18]} 24. Qg4 {[%clk 0:02:10]} 1-0


[Site "https://www.chess.com"]

[Event "Titled Tuesday Blitz June 13 Early 2023"]
[White "Ahmad, Khagan"]
[Black "agvania123"]
[WhiteFideId "13431552"]
[WhiteElo "2209"]
[BlackElo "2251"]
[Result "1-0"]
[Round "1"]
[TimeControl "180+2"]
[Date "2023.06.13"]
[WhiteClock "0:00:12"]
[BlackClock "0:00:23"]
[Board "184"]

1. d4 {[%clk 0:02:59]}  Nf6 {[%clk 0:02:59]} 2. Nc3 {[%clk 0:02:30]}  d5 {[%clk 0:02:57]} 3. Bf4 {[%clk 0:02:30]}  e6 {[%clk 0:02:56]} 4. e3 {[%clk 0:02:31]}  Bb4 {[%clk 0:02:46]} 5. Ne2 {[%clk 0:02:23]}  O-O {[%clk 0:02:45]} 6. a3 {[%clk 0:02:23]}  Bd6 {[%clk 0:02:43]} 7. Bxd6 {[%clk 0:02:20]}  Qxd6 {[%clk 0:02:40]} 8. Nf4 {[%clk 0:02:21]}  b6 {[%clk 0:02:39]} 9. Nb5 {[%clk 0:02:18]}  Qd7 {[%clk 0:02:38]} 10. c4 {[%clk 0:02:19]}  dxc4 {[%clk 0:02:36]} 11. Bxc4 {[%clk 0:02:10]}  a6 {[%clk 0:02:36]} 12. Nc3 {[%clk 0:02:09]}  Bb7 {[%clk 0:02:35]} 13. Bd3 {[%clk 0:02:08]}  c5 {[%clk 0:02:27]} 14. dxc5 {[%clk 0:01:26]}  e5 {[%clk 0:02:14]} 15. Nfe2 {[%clk 0:01:18]}  bxc5 {[%clk 0:02:03]} 16. O-O {[%clk 0:01:12]}  Nc6 {[%clk 0:01:57]} 17. Ng3 {[%clk 0:01:08]}  Rfd8 {[%clk 0:01:54]} 18. Bc2 {[%clk 0:01:03]}  Qe6 {[%clk 0:01:52]} 19. Qe2 {[%clk 0:00:52]}  g6 {[%clk 0:01:45]} 20. Rfd1 {[%clk 0:00:50]}  Na5 {[%clk 0:01:42]} 21. Rac1 {[%clk 0:00:42]}  c4 {[%clk 0:01:40]} 22. Nge4 {[%clk 0:00:30]}  Nxe4 {[%clk 0:01:39]} 23. Bxe4 {[%clk 0:00:31]}  f5 {[%clk 0:01:32]} 24. Bxb7 {[%clk 0:00:30]}  Nxb7 {[%clk 0:01:32]} 25. e4 {[%clk 0:00:26]}  Nc5 {[%clk 0:01:21]} 26. Nd5 {[%clk 0:00:21]}  Rac8 {[%clk 0:01:11]} 27. Qxc4 {[%clk 0:00:20]}  Kh8 {[%clk 0:00:41]} 28. exf5 {[%clk 0:00:17]}  gxf5 {[%clk 0:00:40]} 29. Ne3 {[%clk 0:00:17]}  Rxd1+ {[%clk 0:00:38]} 30. Rxd1 {[%clk 0:00:18]}  Qxc4 {[%clk 0:00:38]} 31. Nxc4 {[%clk 0:00:19]}  Na4 {[%clk 0:00:37]} 32. b3 {[%clk 0:00:17]}  Nc3 {[%clk 0:00:37]} 33. Rd3 {[%clk 0:00:18]}  Ne2+ {[%clk 0:00:35]} 34. Kf1 {[%clk 0:00:18]}  Nd4 {[%clk 0:00:36]} 35. f4 {[%clk 0:00:18]}  Nxb3 {[%clk 0:00:33]} 36. Nxe5 {[%clk 0:00:15]}  Rc1+ {[%clk 0:00:32]} 37. Kf2 {[%clk 0:00:15]}  Nc5 {[%clk 0:00:32]} 38. Rd8+ {[%clk 0:00:13]}  Kg7 {[%clk 0:00:33]} 39. Kg3 {[%clk 0:00:13]}  Ne4+ {[%clk 0:00:33]} 40. Kh3 {[%clk 0:00:13]}  Rc3+ {[%clk 0:00:33]} 41. g3 {[%clk 0:00:14]}  Rc2 {[%clk 0:00:33]} 42. Rd7+ {[%clk 0:00:14]}  Kf6 {[%clk 0:00:33]} 43. Rxh7 {[%clk 0:00:13]}  Nf2+ {[%clk 0:00:33]} 44. Kh4 {[%clk 0:00:13]}  Ne4 {[%clk 0:00:33]} 45. Rh6+ {[%clk 0:00:14]}  Ke7 {[%clk 0:00:33]} 46. h3 {[%clk 0:00:14]}  Rc3 {[%clk 0:00:33]} 47. g4 {[%clk 0:00:12]}  Nf2 {[%clk 0:00:31]} 48. Kg5 {[%clk 0:00:10]}  fxg4 {[%clk 0:00:30]} 49. hxg4 {[%clk 0:00:11]}  Ne4+ {[%clk 0:00:29]} 50. Kf5 {[%clk 0:00:11]}  Ng3+ {[%clk 0:00:29]} 51. Kg6 {[%clk 0:00:11]}  Rxa3 {[%clk 0:00:27]} 52. f5 {[%clk 0:00:11]}  Ne4 {[%clk 0:00:26]} 53. Rh7+ {[%clk 0:00:11]}  Kd6 {[%clk 0:00:23]} 54. Nc4+ {[%clk 0:00:12]} 1-0


[Site "https://www.chess.com"]